bitfinex-derivatives/quotes_ETHF0:USTF0_20230104
["timestamp","ask_amount","ask_price","bid_price","bid_amount"]
[1672868908771,1.597,1252.2,1252.1,4.18137221]
[1672868909090,1.597,1252.2,1252.1,2.3883781]
[1672868909505,1.597,1252.2,1252.1,4.18141247]
[1672868910572,1.597,1252.2,1252.1,3.8883781]
[1672868910776,1.597,1252.2,1252.1,8.30865989]
[1672868910987,1.597,1252.2,1252.1,11.29553195]
[1672868911193,1.597,1252.2,1252.1,8.30865989]
[1672868911403,5.5073,1252.5,1252.1,15.49076909]
[1672868911615,5.5073,1252.5,1252.4,1.19501643]
[1672868911823,7.1043,1252.5,1252.4,1.19501643]
[1672868913192,7.1043,1252.5,1252.3,1.79252464]
[1672868913193,7.1043,1252.5,1252.3,2.98754107]
[1672868916031,7.1043,1252.5,1252.3,10.96654107]
[1672868916349,7.1043,1252.5,1252.4,3.69501643]
[1672868916557,7.1043,1252.5,1252.4,1.19501643]
[1672868917822,4.097,1252.5,1252.4,1.19501643]
[1672868920873,4.097,1252.5,1252.3,13.97384107]
[1672868921087,4.097,1252.5,1252.4,1.19501643]
[1672868921400,4.097,1252.5,1252.4,3.69501643]
[1672868921614,1.597,1252.5,1252.4,3.69501643]
[1672868924968,1.597,1252.5,1252.4,1.19501643]
[1672868925496,1.597,1252.5,1252.4,3.69501643]
[1672868925705,1.597,1252.5,1252.4,1.19501643]
[1672868926438,1.597,1252.5,1252.4,3.69501643]
[1672868926649,1.597,1252.5,1252.4,1.19501643]
[1672868927492,1.597,1252.5,1252.3,10.96654107]
[1672868927702,1.597,1252.5,1252.4,1.19501643]
[1672868928020,1.597,1252.5,1252.4,3.69501643]
[1672868928336,1.597,1252.5,1252.4,11.67401643]
[1672868930650,1.597,1252.5,1252.4,9.17401643]
[1672868933802,7.0943,1252.7,1252.4,10.77101643]
[1672868934012,4.087,1252.7,1252.4,12.56354107]
[1672868934439,7.0943,1252.7,1252.4,12.56354107]
[1672868934647,7.0943,1252.7,1252.4,10.77101643]
[1672868934964,7.0943,1252.7,1252.4,12.56354107]
[1672868936009,7.0943,1252.7,1252.4,10.77101643]
[1672868938958,4.087,1252.7,1252.4,10.77101643]
[1672868939273,7.0943,1252.7,1252.4,10.77101643]
[1672868939478,4.087,1252.7,1252.4,10.77101643]
[1672868939687,7.0943,1252.7,1252.4,10.77101643]
[1672868939900,4.087,1252.7,1252.4,10.77101643]
[1672868940111,7.0943,1252.7,1252.4,10.77101643]
[1672868941060,4.087,1252.7,1252.4,10.77101643]
[1672868941263,7.0943,1252.7,1252.4,10.77101643]
[1672868942525,7.0943,1252.7,1252.4,12.56354107]
[1672868944205,4.087,1252.7,1252.4,12.56354107]
[1672868944419,7.0943,1252.7,1252.4,10.77101643]
[1672868944630,7.0943,1252.7,1252.4,12.56354107]
[1672868945044,4.087,1252.7,1252.4,12.56354107]
[1672868945253,7.0943,1252.7,1252.4,12.56354107]
[1672868945466,7.0943,1252.7,1252.4,10.77101643]
[1672868945987,3.0073,1252.5,1252.4,2.79201643]
[1672868949777,3.0073,1252.6,1252.4,2.79201643]
[1672868949987,2.5,1252.5,1252.4,2.79201643]
[1672868950300,2.5,1252.5,1252.4,4.58454107]
[1672868950618,2.5,1252.5,1252.4,2.79201643]
[1672868950827,2.5,1252.5,1252.4,4.58519171]
[1672868951355,2.5,1252.5,1252.4,3.38952464]
[1672868951566,2.5,1252.5,1252.4,4.58517807]
[1672868951882,2.5,1252.5,1252.4,3.38952464]
[1672868952509,2.5,1252.5,1252.4,4.58527762]
[1672868952720,2.5,1252.5,1252.4,3.38952464]
[1672868954709,2.5,1252.5,1252.4,4.58578276]
[1672868955127,2.5,1252.5,1252.4,2.98878276]
[1672868958701,4.097,1252.5,1252.4,1.19625812]
[1672868958911,4.097,1252.5,1252.3,2.98878276]
[1672868959128,4.6043,1252.4,1252.3,2.98878276]
[1672868959548,4.6043,1252.4,1252.3,1.19625812]
[1672868959758,4.6043,1252.4,1252.3,2.98878276]
[1672868959969,4.6043,1252.4,1252.3,1.19625812]
[1672868960493,4.6043,1252.4,1252.3,2.98878276]
[1672868960697,4.6043,1252.4,1252.3,1.19625812]
[1672868967111,4.6043,1252.4,1252.2,2.98878276]
[1672868969744,4.6043,1252.4,1252.3,1.19625812]
[1672868969956,4.6043,1252.4,1252.3,3.69625812]
[1672868970271,4.6043,1252.4,1252.3,1.19625812]
[1672868970476,1.597,1252.4,1252.3,1.19625812]
[1672868970688,4.6043,1252.4,1252.3,1.19625812]
[1672868974162,1.597,1252.4,1252.3,1.19625812]
[1672868974364,4.6043,1252.4,1252.3,1.19625812]
[1672868975106,1.597,1252.4,1252.3,1.19625812]
[1672868975309,4.6043,1252.4,1252.3,1.19625812]
[1672868975520,4.6043,1252.4,1252.2,1.79252464]
[1672868975521,4.6043,1252.4,1252.2,2.98878276]
[1672868975730,4.6043,1252.4,1252.2,1.19625812]
[1672868976360,4.6043,1252.4,1252.2,2.98878276]
[1672868976683,4.6043,1252.4,1252.2,1.19625812]
[1672868977095,4.6043,1252.4,1252.2,2.98878276]
[1672868977305,4.6043,1252.4,1252.2,1.19625812]
[1672868978886,4.6043,1252.4,1252.2,2.98878276]
[1672868979202,4.6043,1252.4,1252.2,1.19625812]
[1672868979834,1.597,1252.4,1252.2,1.19625812]
[1672868980036,3.0073,1252.3,1252.2,1.19625812]
[1672868981003,1.597,1252.4,1252.2,1.19625812]
[1672868981311,3.0073,1252.3,1252.2,1.19625812]
[1672868982473,1.597,1252.4,1252.2,1.19625812]
[1672868982674,3.0073,1252.3,1252.2,1.19625812]
[1672868985200,4.6043,1252.3,1252.2,1.19625812]
[1672868989823,1.597,1252.3,1252.2,1.19625812]
[1672868990032,4.6043,1252.3,1252.2,1.19625812]
[1672868990875,4.6043,1252.3,1252.2,2.98878276]
[1672868991612,1.597,1252.3,1252.2,2.98878276]
[1672868992146,4.6043,1252.3,1252.2,2.98878276]
[1672868994669,4.6043,1252.3,1252.2,1.79252464]
[1672868995825,4.6043,1252.3,1252.2,2.98930394]
[1672868996032,1.597,1252.3,1252.2,2.98930394]
[1672868996244,4.6043,1252.3,1252.2,2.98930394]
[1672868996561,1.597,1252.3,1252.2,1.79252464]
[1672868996771,4.6043,1252.3,1252.2,1.79252464]
[1672868997188,4.6043,1252.3,1252.2,4.17957492]
[1672868997395,4.6043,1252.3,1252.2,1.79252464]
[1672868997928,1.597,1252.3,1252.2,1.79252464]
[1672868998136,4.6043,1252.3,1252.2,1.79252464]
[1672868999085,4.6043,1252.3,1252.2,4.17957492]
[1672868999916,4.6043,1252.3,1252.2,2.38705028]
[1672869000132,1.597,1252.3,1252.2,2.38705028]
[1672869000345,4.6043,1252.4,1252.2,2.38705028]
[1672869000549,4.6043,1252.4,1252.3,1.7955782]
[1672869000758,4.6043,1252.4,1252.3,6.68262848]
[1672869000969,4.6043,1252.4,1252.3,4.18262848]
[1672869002023,4.6043,1252.4,1252.3,1.7955782]
[1672869003607,3.0073,1252.4,1252.3,4.18262848]
[1672869004232,3.0073,1252.4,1252.3,2.38705028]
[1672869004441,3.0073,1252.4,1252.3,3.80231203]
[1672869004649,3.0073,1252.4,1252.3,2.38705028]
[1672869005710,3.0073,1252.4,1252.3,3.88705028]
[1672869006123,4.097,1252.5,1252.3,3.8816155]
[1672869006333,4.097,1252.5,1252.4,2.99144437]
[1672869006866,7.1043,1252.5,1252.4,2.99144437]
[1672869007916,4.097,1252.5,1252.4,2.99144437]
[1672869008118,7.1043,1252.5,1252.4,2.99144437]
[1672869008759,7.1043,1252.5,1252.4,1.19657775]
[1672869009074,4.097,1252.5,1252.4,1.19657775]
[1672869009287,7.1043,1252.5,1252.4,2.99144437]
[1672869010231,3.0073,1252.5,1252.4,2.99144437]
[1672869011598,6.1043,1252.6,1252.4,2.99144437]
[1672869012012,3.097,1252.6,1252.4,2.99144437]
[1672869012323,6.1043,1252.6,1252.4,2.99144437]
[1672869012637,6.1043,1252.6,1252.4,1.19657775]
[1672869013067,6.1043,1252.6,1252.4,2.99144437]
[1672869013270,3.097,1252.6,1252.4,2.99144437]
[1672869013480,6.1043,1252.6,1252.4,2.99144437]
[1672869013904,6.1043,1252.6,1252.4,1.19657775]
[1672869014534,3.097,1252.6,1252.4,1.19657775]
[1672869014753,6.1043,1252.6,1252.4,1.19657775]
[1672869014966,3.097,1252.6,1252.4,1.19657775]
[1672869015174,6.1043,1252.6,1252.4,1.19657775]
[1672869016017,3.097,1252.6,1252.4,1.19657775]
[1672869016221,6.1043,1252.6,1252.4,1.19657775]
[1672869017801,3.097,1252.6,1252.4,1.19657775]
[1672869018017,3.0073,1252.5,1252.4,1.19657775]
[1672869023476,3.0073,1252.5,1252.3,4.57844437]
[1672869023687,2.5,1252.4,1252.3,4.57844437]
[1672869024737,2.5,1252.4,1252.3,3.38186662]
[1672869025048,3.0073,1252.5,1252.3,3.38186662]
[1672869025262,3.0073,1252.5,1252.4,1.19551729]
[1672869026837,3.097,1252.6,1252.4,1.19551729]
[1672869027057,6.1043,1252.6,1252.4,1.19551729]
[1672869027583,3.097,1252.6,1252.4,1.19551729]
[1672869027797,6.1043,1252.6,1252.4,1.19551729]
[1672869028003,3.097,1252.6,1252.4,1.19551729]
[1672869028208,6.1043,1252.6,1252.4,1.19551729]
[1672869030002,3.097,1252.6,1252.4,1.19551729]
[1672869030207,3.0073,1252.5,1252.4,1.19551729]
[1672869032521,3.097,1252.6,1252.4,1.19551729]
[1672869032728,3.0073,1252.5,1252.4,1.19551729]
[1672869034520,3.0073,1252.5,1252.4,2.99038391]
[1672869035991,3.0073,1252.5,1252.4,1.79486662]
[1672869037356,6.1043,1252.6,1252.4,1.79486662]
[1672869037565,7.7013,1252.6,1252.5,1.19686826]
[1672869038513,7.7013,1252.6,1252.5,2.99173488]
[1672869038927,7.7013,1252.6,1252.5,1.19686826]
[1672869041563,4.694,1252.6,1252.5,1.19686826]
[1672869041774,7.7013,1252.6,1252.5,1.19686826]
[1672869042193,4.694,1252.6,1252.5,1.19686826]
[1672869042510,7.7013,1252.6,1252.5,1.19686826]
[1672869049240,7.7013,1252.6,1252.5,2.99173488]
[1672869049559,6.1043,1252.6,1252.5,2.99173488]
[1672869051030,3.097,1252.6,1252.5,2.99173488]
[1672869051239,6.1043,1252.6,1252.5,2.99173488]
[1672869056601,3.097,1252.6,1252.5,2.99173488]
[1672869056806,6.1043,1252.6,1252.5,2.99173488]
[1672869057443,3.097,1252.6,1252.5,2.99173488]
[1672869057652,6.1043,1252.6,1252.5,2.99173488]
[1672869059015,3.097,1252.6,1252.5,2.99173488]
[1672869059332,6.1043,1252.6,1252.5,2.99173488]
[1672869059744,3.097,1252.6,1252.5,2.99173488]
[1672869060166,3.097,1252.6,1252.5,1.79486662]
[1672869060587,3.097,1252.6,1252.5,2.99187295]
[1672869060804,3.097,1252.6,1252.5,1.19700633]
[1672869063008,3.097,1252.6,1252.5,2.99187295]
[1672869063531,3.097,1252.6,1252.5,1.19700633]
[1672869065647,6.1043,1252.6,1252.5,1.19700633]
[1672869066701,6.1043,1252.6,1252.5,2.99187295]
[1672869069023,3.097,1252.6,1252.5,2.99187295]
[1672869069242,6.1043,1252.6,1252.5,2.99187295]
[1672869070820,6.1043,1252.6,1252.5,1.19700633]
[1672869071966,3.097,1252.6,1252.5,1.19700633]
[1672869072176,6.1043,1252.6,1252.5,1.19700633]
[1672869072380,3.097,1252.6,1252.5,1.19700633]
[1672869072594,6.1043,1252.6,1252.5,1.19700633]
[1672869073433,3.097,1252.6,1252.5,1.19700633]
[1672869073645,6.1043,1252.6,1252.5,1.19700633]
[1672869076779,3.097,1252.6,1252.5,1.19700633]
[1672869076992,6.1043,1252.6,1252.5,1.19700633]
[1672869077520,6.1043,1252.6,1252.5,2.99187295]
[1672869079621,3.097,1252.6,1252.5,2.99187295]
[1672869079830,6.1043,1252.6,1252.5,2.99187295]
[1672869082571,3.097,1252.6,1252.5,2.99187295]
[1672869082886,6.1043,1252.6,1252.5,2.99187295]
[1672869083312,6.1043,1252.6,1252.5,1.79486662]
[1672869083827,6.1043,1252.6,1252.5,2.99232682]
[1672869084562,3.097,1252.6,1252.5,2.99232682]
[1672869084978,6.1043,1252.6,1252.5,2.99232682]
[1672869085936,3.097,1252.6,1252.5,2.99232682]
[1672869086156,6.1043,1252.6,1252.5,2.99232682]
[1672869086666,3.097,1252.6,1252.5,2.99232682]
[1672869087612,6.1043,1252.6,1252.5,2.99232682]
[1672869088445,3.097,1252.6,1252.5,2.99232682]
[1672869088654,6.1043,1252.6,1252.5,2.99232682]
[1672869089608,3.097,1252.6,1252.5,2.99232682]
[1672869089815,6.1043,1252.6,1252.5,2.99232682]
[1672869093078,3.097,1252.6,1252.5,2.99232682]
[1672869093399,6.1043,1252.6,1252.5,2.99232682]
[1672869095706,3.097,1252.6,1252.5,2.99232682]
[1672869095913,6.1043,1252.6,1252.5,2.99232682]
[1672869096961,3.097,1252.6,1252.5,2.99232682]
[1672869097187,6.1043,1252.6,1252.5,2.99232682]
[1672869099710,3.097,1252.6,1252.5,2.99232682]
[1672869099921,6.1043,1252.6,1252.5,2.99232682]
[1672869100123,3.097,1252.6,1252.5,2.99232682]
[1672869100333,6.1043,1252.6,1252.5,2.99232682]
[1672869102755,3.097,1252.6,1252.5,2.99232682]
[1672869102968,6.1043,1252.6,1252.5,2.99232682]
[1672869105595,3.097,1252.6,1252.5,2.99232682]
[1672869105808,6.1043,1252.6,1252.5,2.99232682]
[1672869106008,3.097,1252.6,1252.5,2.99232682]
[1672869106544,6.1043,1252.6,1252.5,2.99232682]
[1672869107695,3.097,1252.6,1252.5,2.99232682]
[1672869108113,6.1043,1252.6,1252.5,2.99232682]
[1672869108329,3.097,1252.6,1252.5,2.99232682]
[1672869108537,6.1043,1252.6,1252.5,2.99232682]
[1672869110643,3.097,1252.6,1252.5,2.99232682]
[1672869110854,6.1043,1252.6,1252.5,2.99232682]
[1672869114108,3.097,1252.6,1252.5,2.99232682]
[1672869114320,6.1043,1252.6,1252.5,2.99232682]
[1672869115581,3.097,1252.6,1252.5,2.99232682]
[1672869115790,6.1043,1252.6,1252.5,2.99232682]
[1672869116730,3.097,1252.6,1252.5,2.99232682]
[1672869116940,6.1043,1252.6,1252.5,2.99232682]
[1672869117156,6.1043,1252.6,1252.5,1.79486662]
[1672869117470,6.1043,1252.6,1252.5,2.99270382]
[1672869119576,3.097,1252.6,1252.5,2.99270382]
[1672869119891,6.1043,1252.6,1252.5,2.99270382]
[1672869125781,3.097,1252.6,1252.5,2.99270382]
[1672869126095,6.1043,1252.6,1252.5,2.99270382]
[1672869128622,3.097,1252.6,1252.5,2.99270382]
[1672869128924,3.0073,1252.6,1252.5,10.36613435]
[1672869129128,3.0073,1252.6,1252.5,13.28121982]
[1672869129342,3.0073,1252.6,1252.5,11.86613435]
[1672869129548,3.0073,1252.6,1252.5,13.66180524]
[1672869129980,3.0073,1252.6,1252.5,11.86613435]
[1672869130181,3.0073,1252.6,1252.5,13.66187757]
[1672869130392,3.0073,1252.6,1252.5,9.7688712]
[1672869131452,3.0073,1252.6,1252.5,12.16187757]
[1672869132084,4.09,1252.7,1252.5,12.16187757]
[1672869132295,7.0973,1252.7,1252.6,1.19715902]
[1672869132508,4.5973,1252.7,1252.6,2.69715902]
[1672869133662,4.5973,1252.7,1252.6,1.19715902]
[1672869135234,4.5973,1252.7,1252.6,2.69715902]
[1672869135451,4.5973,1252.7,1252.6,1.19715902]
[1672869137551,1.59,1252.7,1252.6,1.19715902]
[1672869137872,4.5973,1252.7,1252.6,1.19715902]
[1672869140914,1.59,1252.7,1252.6,1.19715902]
[1672869141120,4.5973,1252.7,1252.6,1.19715902]
[1672869142387,1.59,1252.7,1252.6,1.19715902]
[1672869142589,4.5973,1252.7,1252.6,1.19715902]
[1672869143218,4.5973,1252.7,1252.5,2.99290224]
[1672869144171,4.5973,1252.7,1252.6,1.19715902]
[1672869144384,4.5973,1252.7,1252.6,2.69715902]
[1672869144796,4.5973,1252.7,1252.6,1.19715902]
[1672869145222,4.6043,1252.7,1252.6,1.19715902]
[1672869145432,4.6043,1252.7,1252.5,2.99290224]
[1672869145966,4.6043,1252.7,1252.6,1.19715902]
[1672869146276,4.6043,1252.7,1252.6,2.69715902]
[1672869146689,4.6043,1252.7,1252.6,1.19715902]
[1672869148372,1.597,1252.7,1252.6,1.19715902]
[1672869148900,4.6043,1252.7,1252.6,1.19715902]
[1672869149107,1.597,1252.7,1252.6,1.19715902]
[1672869149310,4.6043,1252.7,1252.6,1.19715902]
[1672869149636,1.597,1252.7,1252.6,1.19715902]
[1672869149847,4.6043,1252.7,1252.6,1.19715902]
[1672869150578,1.597,1252.7,1252.6,1.19715902]
[1672869150784,4.6043,1252.7,1252.6,1.19715902]
[1672869152570,1.597,1252.7,1252.6,1.19715902]
[1672869152782,4.6043,1252.7,1252.6,1.19715902]
[1672869152992,1.597,1252.7,1252.6,1.19715902]
[1672869153204,4.6043,1252.7,1252.6,1.19715902]
[1672869153629,1.597,1252.7,1252.6,1.19715902]
[1672869153940,4.6043,1252.7,1252.6,1.19715902]
[1672869154150,4.6043,1252.7,1252.5,2.99290224]
[1672869154354,1.597,1252.6,1252.5,1.19715902]
[1672869154776,3.097,1252.6,1252.5,2.99290224]
[1672869157201,6.1043,1252.6,1252.5,2.99290224]
[1672869158463,3.097,1252.6,1252.5,2.99290224]
[1672869158670,6.1043,1252.6,1252.5,2.99290224]
[1672869159512,3.097,1252.6,1252.5,2.99290224]
[1672869159724,6.1043,1252.6,1252.5,2.99290224]
[1672869160870,4.6043,1252.6,1252.5,1.79574322]
[1672869162025,3.0073,1252.6,1252.5,1.79574322]
[1672869162453,1.597,1252.7,1252.5,1.79574322]
[1672869162658,1.597,1252.7,1252.6,1.1970919]
[1672869162866,4.6043,1252.7,1252.6,1.1970919]
[1672869163394,1.597,1252.7,1252.6,1.1970919]
[1672869163825,4.6043,1252.7,1252.6,1.1970919]
[1672869164136,1.597,1252.7,1252.6,1.1970919]
[1672869164657,4.6043,1252.7,1252.6,1.1970919]
[1672869164863,1.597,1252.7,1252.6,1.1970919]
[1672869165069,4.6043,1252.7,1252.6,1.1970919]
[1672869165809,1.597,1252.7,1252.6,1.1970919]
[1672869166342,4.6043,1252.7,1252.6,1.1970919]
[1672869166542,4.6043,1252.7,1252.5,1.1970919]
[1672869166962,4.6043,1252.7,1252.5,2.99283512]
[1672869167169,4.6043,1252.7,1252.5,1.1970919]
[1672869168652,1.597,1252.7,1252.5,1.1970919]
[1672869168863,3.0073,1252.6,1252.5,1.1970919]
[1672869169595,1.597,1252.7,1252.5,1.1970919]
[1672869169809,3.0073,1252.6,1252.5,1.1970919]
[1672869170538,3.0073,1252.6,1252.5,2.99283512]
[1672869173697,1.597,1252.7,1252.5,2.99283512]
[1672869173910,3.0073,1252.6,1252.5,2.99283512]
[1672869175801,3.0073,1252.6,1252.5,1.79574322]
[1672869176857,4.6043,1252.7,1252.5,1.79574322]
[1672869177162,1.5,1252.6,1252.5,2.99289204]
[1672869178964,4.5073,1252.6,1252.5,2.99289204]
[1672869179371,1.5,1252.6,1252.5,2.99289204]
[1672869179585,4.5073,1252.6,1252.5,2.99289204]
[1672869180521,1.5,1252.6,1252.5,2.99289204]
[1672869180734,4.5073,1252.6,1252.5,2.99289204]
[1672869180948,4.5073,1252.6,1252.5,2.99293417]
[1672869181356,4.5073,1252.6,1252.5,2.99296863]
[1672869182416,1.5,1252.6,1252.5,2.99296863]
[1672869182623,4.5073,1252.6,1252.5,2.99296863]
[1672869183574,1.5,1252.6,1252.5,2.99296863]
[1672869183776,4.5073,1252.6,1252.5,2.99296863]
[1672869185681,1.5,1252.6,1252.5,2.99296863]
[1672869185881,4.5073,1252.6,1252.5,2.99296863]
[1672869186414,4.5073,1252.6,1252.5,1.79574322]
[1672869186617,4.5073,1252.6,1252.5,2.99297408]
[1672869186940,1.5,1252.6,1252.5,2.99297408]
[1672869187465,4.5073,1252.6,1252.5,2.99297408]
[1672869189671,1.5,1252.6,1252.5,2.99297408]
[1672869189988,4.5073,1252.6,1252.5,2.99297408]
[1672869190194,4.5073,1252.6,1252.5,1.79574322]
[1672869190399,1.5,1252.6,1252.5,1.79574322]
[1672869190614,4.5073,1252.6,1252.5,2.99304782]
[1672869191033,1.5,1252.6,1252.5,2.99304782]
[1672869191246,4.5073,1252.6,1252.5,2.99304782]
[1672869192820,1.5,1252.6,1252.5,2.99304782]
[1672869193141,4.5073,1252.6,1252.5,2.99304782]
[1672869193559,1.5,1252.6,1252.5,2.99304782]
[1672869193764,4.5073,1252.6,1252.5,2.99304782]
[1672869195871,4.5073,1252.6,1252.5,2.9883045]
[1672869196397,1.5,1252.6,1252.5,2.9883045]
[1672869196709,4.5073,1252.6,1252.5,2.9883045]
[1672869199023,1.5,1252.6,1252.5,2.9883045]
[1672869199233,4.5073,1252.6,1252.5,2.9883045]
[1672869199757,1.5,1252.6,1252.5,2.9883045]
[1672869199968,4.5073,1252.6,1252.5,2.9883045]
[1672869201967,1.5,1252.6,1252.5,2.9883045]
[1672869202182,4.5073,1252.6,1252.5,2.9883045]
[1672869202379,1.5,1252.6,1252.5,2.9883045]
[1672869202588,4.5073,1252.6,1252.5,2.9883045]
[1672869206382,1.5,1252.6,1252.5,2.9883045]
[1672869206696,4.5073,1252.6,1252.5,2.9883045]
[1672869206906,3.0073,1252.6,1252.5,2.9883045]
[1672869207538,3.0073,1252.6,1252.5,1.7909999]
[1672869208795,1.597,1252.7,1252.5,1.7909999]
[1672869209011,4.6043,1252.7,1252.6,1.1976578]
[1672869209212,1.597,1252.7,1252.6,1.1976578]
[1672869209422,4.6043,1252.7,1252.6,1.1976578]
[1672869210475,1.597,1252.7,1252.6,1.1976578]
[1672869210690,4.6043,1252.7,1252.6,1.1976578]
[1672869214160,1.597,1252.7,1252.6,1.1976578]
[1672869214364,4.6043,1252.7,1252.6,1.1976578]
[1672869214784,1.597,1252.7,1252.6,1.1976578]
[1672869215103,4.5963,1252.7,1252.6,1.1976578]
[1672869215316,1.589,1252.7,1252.6,1.1976578]
[1672869215527,4.5963,1252.7,1252.6,1.1976578]
[1672869215738,1.589,1252.7,1252.6,1.1976578]
[1672869215947,4.5963,1252.7,1252.6,1.1976578]
[1672869216366,1.589,1252.7,1252.6,1.1976578]
[1672869216573,4.5963,1252.7,1252.6,1.1976578]
[1672869218580,4.5963,1252.7,1252.5,2.9886577]
[1672869219630,4.5963,1252.7,1252.6,1.1976578]
[1672869220787,1.589,1252.7,1252.6,1.1976578]
[1672869220998,4.5963,1252.7,1252.6,1.1976578]
[1672869221310,1.589,1252.7,1252.6,1.1976578]
[1672869221841,4.5963,1252.7,1252.6,1.1976578]
[1672869222053,1.589,1252.7,1252.6,1.1976578]
[1672869222361,4.5963,1252.7,1252.6,1.1976578]
[1672869222893,1.589,1252.7,1252.6,1.1976578]
[1672869223204,4.5963,1252.7,1252.6,1.1976578]
[1672869223515,4.5963,1252.7,1252.5,2.9886577]
[1672869224362,3.0073,1252.6,1252.5,2.9886577]
[1672869225410,3.0073,1252.6,1252.5,1.7909999]
[1672869228781,3.0073,1252.6,1252.5,4.18400627]
[1672869229306,1.589,1252.7,1252.5,4.18400627]
[1672869229518,4.5963,1252.7,1252.6,1.19724075]
[1672869229830,1.589,1252.7,1252.6,1.19724075]
[1672869230042,4.5963,1252.7,1252.6,1.19724075]
[1672869230984,1.589,1252.7,1252.6,1.19724075]
[1672869231300,4.5963,1252.7,1252.6,1.19724075]
[1672869231713,1.589,1252.7,1252.6,1.19724075]
[1672869231923,4.5963,1252.7,1252.6,1.19724075]
[1672869232660,1.589,1252.7,1252.6,1.19724075]
[1672869232872,4.5963,1252.7,1252.6,1.19724075]
[1672869233719,1.589,1252.7,1252.6,1.19724075]
[1672869233928,4.5963,1252.7,1252.6,1.19724075]
[1672869234449,1.589,1252.7,1252.6,1.19724075]
[1672869234664,4.5963,1252.7,1252.6,1.19724075]
[1672869235184,1.589,1252.7,1252.6,1.19724075]
[1672869235600,4.5963,1252.7,1252.6,1.19724075]
[1672869236447,1.589,1252.7,1252.6,1.19724075]
[1672869236970,4.5963,1252.7,1252.6,1.19724075]
[1672869237605,4.5963,1252.7,1252.5,2.98824065]
[1672869237809,1.5,1252.6,1252.5,1.7909999]
[1672869238016,1.5,1252.6,1252.5,2.98823852]
[1672869241384,1.5,1252.6,1252.5,1.7909999]
[1672869242227,4.5073,1252.6,1252.5,1.7909999]
[1672869243065,4.5073,1252.6,1252.5,2.98829466]
[1672869244955,1.5,1252.6,1252.5,2.98829466]
[1672869245162,4.5073,1252.6,1252.5,2.98829466]
[1672869245907,1.5,1252.6,1252.5,2.98829466]
[1672869246220,4.5073,1252.6,1252.5,2.98829466]
[1672869246537,1.5,1252.6,1252.5,2.98829466]
[1672869246746,4.5073,1252.6,1252.5,2.98829466]
[1672869246958,1.5,1252.6,1252.5,2.98829466]
[1672869247162,4.5073,1252.6,1252.5,2.98829466]
[1672869247587,4.5073,1252.6,1252.5,1.19729476]
[1672869252419,1.5,1252.6,1252.5,1.19729476]
[1672869252943,4.5073,1252.6,1252.5,1.19729476]
[1672869255049,6.1043,1252.6,1252.5,1.19729476]
[1672869258198,9.2913,1252.6,1252.3,2.99277132]
[1672869258409,9.2913,1252.6,1252.3,1.19729476]
[1672869258410,4.6043,1252.4,1252.3,1.19729476]
[1672869259143,4.6043,1252.4,1252.2,2.99277132]
[1672869259359,1.59,1252.3,1252.2,2.99277132]
[1672869259556,1.59,1252.3,1252.2,2.99166767]
[1672869260396,1.59,1252.3,1252.2,1.19619111]
[1672869262399,1.59,1252.3,1252.2,1.1938687]
[1672869263242,4.5973,1252.3,1252.2,1.1938687]
[1672869263763,1.59,1252.3,1252.2,1.1938687]
[1672869263969,4.5973,1252.3,1252.1,1.79547656]
[1672869266291,1.59,1252.3,1252.1,1.79547656]
[1672869266496,4.5973,1252.3,1252.1,1.79547656]
[1672869267128,1.59,1252.3,1252.1,1.79547656]
[1672869267436,1.58516032,1252.3,1252.2,2.5]
[1672869267653,4.59246032,1252.3,1252.1,3.29547656]
[1672869268076,4.59246032,1252.3,1252.1,1.79547656]
[1672869270802,1.58516032,1252.3,1252.1,1.79547656]
[1672869271015,4.59246032,1252.3,1252.1,1.79547656]
[1672869271223,1.58516032,1252.3,1252.2,1.79547656]
[1672869271750,1.58516032,1252.3,1252.2,4.29547656]
[1672869273960,1.58516032,1252.3,1252.2,1.79547656]
[1672869275114,1.597,1252.3,1252.2,1.79547656]
[1672869277432,1.597,1252.3,1252.2,4.18848293]
[1672869279641,1.597,1252.3,1252.2,2.39300637]
[1672869280262,1.597,1252.3,1252.2,6.3082584]
[1672869280900,7.2963,1252.5,1252.2,7.8952584]
[1672869281106,7.2963,1252.5,1252.3,1.79274917]
[1672869285736,4.289,1252.5,1252.3,1.79274917]
[1672869287734,7.2963,1252.5,1252.3,1.79274917]
[1672869289421,4.289,1252.5,1252.3,1.79274917]
[1672869295095,4.294,1252.5,1252.3,1.79274917]
[1672869299819,7.3013,1252.5,1252.3,1.79274917]
[1672869301719,7.3013,1252.5,1252.3,4.18575554]
[1672869302765,4.294,1252.5,1252.3,1.79274917]
[1672869303185,7.3013,1252.5,1252.3,1.79274917]
[1672869303715,4.294,1252.5,1252.3,1.79274917]
[1672869303923,7.3013,1252.5,1252.3,1.79274917]
[1672869304551,7.3013,1252.5,1252.3,4.18575554]
[1672869304868,4.6043,1252.5,1252.3,4.18575554]
[1672869306026,1.597,1252.5,1252.3,4.18575554]
[1672869306867,4.6043,1252.5,1252.3,4.18575554]
[1672869307078,4.6043,1252.5,1252.4,1.79274917]
[1672869310021,1.597,1252.5,1252.4,1.79274917]
[1672869311600,4.6043,1252.6,1252.4,2.39300637]
[1672869311803,4.6043,1252.6,1252.5,1.79584429]
[1672869315908,1.597,1252.6,1252.5,1.79584429]
[1672869318850,1.597,1252.6,1252.4,4.18885066]
[1672869319483,1.597,1252.6,1252.5,1.79584429]
[1672869320639,1.597,1252.6,1252.4,4.18885066]
[1672869321057,1.597,1252.6,1252.5,1.79584429]
[1672869322218,1.597,1252.6,1252.4,1.79584429]
[1672869323904,4.6043,1252.6,1252.4,1.79584429]
[1672869324324,1.597,1252.6,1252.4,1.79584429]
[1672869324534,4.6043,1252.6,1252.4,1.79584429]
[1672869325061,3.0073,1252.6,1252.4,3.38484429]
[1672869326740,4.097,1252.7,1252.4,3.38484429]